bitfinex-derivatives/quotes_BTCF0:USTF0_20250406
["timestamp","ask_amount","ask_price","bid_price","bid_amount"]
[1743952149912,0.0534162,82547.0,82546.0,0.127246]
[1743952150113,0.1382485,82547.0,82546.0,0.0424157]
[1743952150304,0.0534162,82547.0,82546.0,0.0424157]
[1743952150510,0.0534162,82547.0,82541.0,1.5355]
[1743952150511,0.0848375,82542.0,82541.0,1.5355]
[1743952150708,0.5448375,82542.0,82541.0,1.5355]
[1743952151106,0.0848457,82534.0,82527.0,0.00060586]
[1743952151308,0.5348457,82534.0,82527.0,0.00060586]
[1743952151713,0.5248457,82534.0,82527.0,0.00060586]
[1743952152018,0.0848519,82528.0,82527.0,0.00060586]
[1743952152317,0.5558519,82528.0,82527.0,0.00060586]
[1743952152705,0.3558519,82528.0,82527.0,0.00060586]
[1743952155515,0.271,82528.0,82527.0,0.00060586]
[1743952155813,0.0858519,82528.0,82527.0,0.00060586]
[1743952156016,0.0424153,82549.0,82541.0,0.0848385]
[1743952156213,0.0848365,82544.0,82543.0,0.0848349]
[1743952156411,0.0848365,82544.0,82543.0,0.1226349]
[1743952156611,0.0848365,82544.0,82543.0,0.1568349]
[1743952156911,0.0368,82559.0,82547.0,0.042416]
[1743952157117,0.1272435,82554.0,82553.0,0.0848221]
[1743952157316,0.0848262,82553.0,82552.0,0.0714]
[1743952157715,0.0848262,82553.0,82552.0,0.1562272]
[1743952157716,0.0948262,82553.0,82552.0,0.1562272]
[1743952159016,0.0948262,82553.0,82552.0,0.0714]
[1743952159814,0.1307262,82553.0,82552.0,0.0714]
[1743952160019,0.0848334,82546.0,82545.0,0.00018168]
[1743952160321,0.3055134,82546.0,82545.0,0.00102168]
[1743952160512,0.3055134,82546.0,82545.0,0.15965608]
[1743952160715,0.9063134,82546.0,82545.0,2.168e-05]
[1743952160919,0.9429134,82546.0,82545.0,0.00066168]
[1743952161117,1.0138134,82546.0,82545.0,0.00066168]
[1743952161412,0.0848509,82529.0,82528.0,0.074]
[1743952161605,0.5048509,82529.0,82528.0,0.00068]
[1743952161807,0.50589091,82529.0,82528.0,0.00068]
[1743952162215,0.57679091,82529.0,82528.0,0.00068]
[1743952166123,0.33059091,82529.0,82528.0,0.0855319]
[1743952166317,0.21104001,82529.0,82528.0,0.1579319]
[1743952166617,0.00018168,82537.0,82536.0,0.0848437]
[1743952166818,0.08502428,82537.0,82536.0,0.0848437]
[1743952167017,0.08502428,82537.0,82536.0,0.1573437]
[1743952168414,0.00018168,82537.0,82536.0,0.1573437]
[1743952170107,0.27502428,82537.0,82536.0,0.07326]
[1743952170306,0.27594428,82537.0,82536.0,0.07326]
[1743952170514,0.27594428,82537.0,82536.0,0.1581037]
[1743952170909,0.00110168,82537.0,82536.0,0.1581037]
[1743952171104,0.00018168,82537.0,82536.0,0.1581037]
[1743952171507,0.1272455,82551.0,82550.0,0.0848282]
[1743952171710,0.011,82551.0,82550.0,0.0848282]
[1743952171922,0.0948282,82551.0,82550.0,0.0854682]
[1743952172219,0.0958282,82551.0,82550.0,0.0854682]
[1743952172708,0.0958282,82551.0,82550.0,0.1605682]
[1743952173412,0.011,82551.0,82550.0,0.1605682]
[1743952173612,0.01,82551.0,82550.0,0.1605682]
[1743952173823,0.01092,82551.0,82550.0,0.1605682]
[1743952174013,0.00092,82551.0,82550.0,0.1605682]
[1743952174206,0.00018168,82559.0,82553.0,0.0424126]
[1743952174421,0.01110168,82559.0,82558.0,0.445621]
[1743952174620,0.09500168,82559.0,82558.0,0.446301]
[1743952174816,0.09596169,82559.0,82558.0,0.483501]
[1743952175415,0.09596169,82559.0,82558.0,0.50008581]
[1743952175621,0.09596169,82559.0,82558.0,0.10208581]
[1743952175817,0.16986169,82559.0,82558.0,0.01726481]
[1743952176022,0.16986169,82559.0,82558.0,0.10140581]
[1743952177024,0.16986169,82559.0,82558.0,0.10145012]
[1743952177217,0.36986169,82559.0,82558.0,0.01662912]
[1743952178917,0.36986169,82559.0,82552.0,8e-05]
[1743952178918,0.0848262,82553.0,82552.0,8e-05]
[1743952179123,0.0848365,82544.0,82543.0,0.084836]
[1743952179317,0.0848365,82543.0,82542.0,0.08501918]
[1743952179524,0.3516565,82543.0,82542.0,0.08501918]
[1743952180725,0.3516565,82543.0,82542.0,0.00018168]
[1743952182022,0.3157565,82543.0,82542.0,0.44581918]
[1743952182227,0.00092,82543.0,82542.0,0.51465918]
[1743952182527,0.1272452,82550.0,82549.0,0.0848303]
[1743952182711,0.1272452,82550.0,82549.0,0.0854703]
[1743952182712,0.00092,82550.0,82549.0,0.0854703]
[1743952182912,0.00092,82550.0,82549.0,0.1198703]
[1743952183125,0.14504454,82555.0,82554.0,0.0848252]
[1743952183320,0.14568454,82555.0,82554.0,0.0854652]
[1743952183525,0.14504454,82555.0,82554.0,0.0854652]
[1743952183724,0.0848241,82555.0,82554.0,0.0854635]
[1743952183925,0.0848241,82555.0,82554.0,0.1192635]
[1743952184439,0.0848241,82555.0,82554.0,0.03444]
[1743952184626,0.0848241,82555.0,82554.0,0.00064]
[1743952184627,0.3154641,82555.0,82554.0,0.00064]
[1743952185232,0.0954641,82555.0,82554.0,0.00064]
[1743952185532,0.1672641,82555.0,82554.0,0.0854652]
[1743952186636,0.1672641,82555.0,82554.0,0.00064]
[1743952187828,0.7780641,82555.0,82554.0,0.00064]
[1743952188131,0.0848354,82544.0,82543.0,0.0848358]
[1743952188331,0.3548354,82544.0,82543.0,0.00076]
[1743952188529,0.6054754,82544.0,82543.0,0.00076]
[1743952193832,0.0848365,82543.0,82542.0,0.00018168]
[1743952194022,0.4290765,82543.0,82542.0,0.00018168]
[1743952195435,0.4390765,82543.0,82542.0,0.00018168]
[1743952197526,0.4744765,82543.0,82542.0,0.00018168]
[1743952198537,0.4744765,82543.0,82538.0,8e-05]
[1743952198538,0.0848519,82528.0,82527.0,0.00060586]
[1743952198735,0.2948519,82528.0,82527.0,0.00132586]
[1743952198937,0.2955319,82528.0,82527.0,0.00132586]
[1743952199636,0.3307319,82528.0,82527.0,0.00132586]
[1743952199838,0.3644319,82528.0,82527.0,0.00132586]
[1743952201240,0.2955319,82528.0,82527.0,0.08617876]
[1743952201642,0.2955319,82528.0,82527.0,0.15777876]
[1743952201839,0.2955319,82528.0,82527.0,0.12127876]
[1743952202035,0.3292319,82528.0,82527.0,0.12127876]
[1743952202644,0.3292319,82528.0,82527.0,0.15597876]
[1743952204449,0.2955319,82528.0,82527.0,0.15597876]
[1743952205345,0.3298319,82528.0,82527.0,0.15597876]
[1743952205547,0.3660319,82528.0,82527.0,0.15597876]
[1743952207536,0.3298319,82528.0,82527.0,0.15597876]
[1743952208450,0.3298319,82528.0,82527.0,0.17268739]
[1743952211443,0.21068,82528.0,82527.0,0.17268739]
[1743952211651,0.2955319,82528.0,82527.0,0.20888739]
[1743952214248,0.2955319,82528.0,82527.0,1.70888739]
[1743952214445,0.2948519,82528.0,82527.0,1.70888739]
[1743952214752,0.2948519,82528.0,82527.0,0.20888739]
[1743952214948,0.2954919,82528.0,82527.0,0.20888739]
[1743952215151,0.2954919,82528.0,82527.0,0.13798739]
[1743952215449,0.4854919,82528.0,82527.0,0.01803449]
[1743952215647,0.4854919,82528.0,82527.0,0.01795449]
[1743952215648,0.8812919,82528.0,82527.0,0.01795449]
[1743952215853,0.9484919,82528.0,82527.0,0.01739697]
[1743952216541,0.5192919,82528.0,82527.0,0.10224987]
[1743952216740,0.5192919,82528.0,82527.0,0.10288987]
[1743952217049,0.5192919,82528.0,82527.0,0.10279219]
[1743952217551,0.3292919,82528.0,82527.0,0.10279219]
[1743952217753,0.3292919,82528.0,82527.0,0.17159219]
[1743952219052,0.2954919,82528.0,82527.0,0.53239219]
[1743952219453,0.2954919,82528.0,82527.0,0.53246218]
[1743952219947,0.2954919,82528.0,82527.0,0.41310928]
[1743952220142,0.3654919,82528.0,82527.0,0.41310928]
[1743952220340,0.3754919,82528.0,82527.0,0.37880928]
[1743952221346,0.3754919,82528.0,82527.0,0.01800928]
[1743952221550,0.3754919,82528.0,82527.0,0.01736928]
[1743952222057,0.7362919,82528.0,82527.0,0.01736928]
[1743952222758,0.84509335,82528.0,82527.0,0.01736928]
[1743952222945,0.84509335,82528.0,82527.0,0.01744159]
[1743952227853,0.3754919,82528.0,82527.0,0.10293449]
[1743952228050,0.3754919,82528.0,82527.0,0.13763449]
[1743952228249,0.3654919,82528.0,82527.0,0.17233449]
[1743952228447,0.3654919,82528.0,82527.0,0.13763449]
[1743952228649,0.3654919,82528.0,82527.0,0.13759436]
[1743952229143,0.28064,82528.0,82527.0,0.17229436]
[1743952229453,0.21064,82528.0,82527.0,0.53309436]
[1743952229956,0.21064,82528.0,82527.0,0.53308224]
[1743952230152,0.21064,82528.0,82527.0,0.51629876]
[1743952230453,0.21064,82528.0,82527.0,0.53308054]
[1743952231161,0.18074432,82542.0,82541.0,0.0848385]
[1743952231361,0.20158432,82542.0,82541.0,0.46322028]
[1743952231567,0.20074432,82542.0,82541.0,0.46321332]
[1743952232056,0.18074432,82542.0,82541.0,0.53031332]
[1743952232556,0.26558182,82542.0,82541.0,0.53031332]
[1743952234460,0.0848375,82542.0,82541.0,0.53031332]
[1743952234846,0.1272545,82544.0,82543.0,0.0848365]
[1743952235047,0.1281745,82544.0,82543.0,0.10253132]
[1743952235566,0.0433382,82544.0,82543.0,0.10253132]
[1743952237659,0.0433382,82544.0,82543.0,0.0857565]
[1743952237856,0.2333382,82544.0,82543.0,0.00092]
[1743952238058,0.3140382,82544.0,82543.0,0.0857565]
[1743952240856,0.3140382,82544.0,82543.0,0.0848365]
[1743952241567,0.0848365,82543.0,82542.0,8e-05]
[1743952241870,0.4136365,82543.0,82542.0,8e-05]
[1743952242566,0.0848437,82536.0,82535.0,0.0848437]
[1743952242768,0.0848447,82535.0,82534.0,0.3608]
[1743952242967,0.4035447,82535.0,82534.0,0.4456457]
[1743952243370,0.3187,82535.0,82534.0,0.4456457]
[1743952243569,0.4035447,82535.0,82534.0,0.4805457]
[1743952245972,0.4041847,82535.0,82534.0,0.4813457]
[1743952246173,0.28564,82535.0,82534.0,0.4813457]
[1743952246374,0.25064,82535.0,82534.0,0.5152457]
[1743952246776,0.25064,82535.0,82534.0,2.0152457]
[1743952247467,0.25,82535.0,82534.0,2.0152457]
[1743952247667,0.2508,82535.0,82534.0,2.0152457]
[1743952247868,0.25,82535.0,82534.0,2.0152457]
[1743952248280,0.25,82535.0,82534.0,0.5152457]
[1743952248465,0.25084,82535.0,82534.0,0.5152457]
[1743952248964,0.25,82535.0,82534.0,0.5152457]
[1743952249371,0.25088,82535.0,82534.0,0.5152457]
[1743952249569,0.28548,82535.0,82534.0,0.5152457]
[1743952251185,0.3703247,82535.0,82534.0,0.4464457]
[1743952251370,0.3803247,82535.0,82534.0,0.3616]
[1743952253775,0.3803247,82535.0,82534.0,0.0008]
[1743952253980,0.0848457,82534.0,82533.0,0.00018168]
[1743952254180,0.6597457,82534.0,82533.0,0.00018168]
[1743952254380,0.6953457,82534.0,82533.0,0.00026168]
[1743952255081,0.6959857,82534.0,82533.0,0.00026168]
[1743952255478,0.6959857,82534.0,82533.0,0.08510838]
[1743952255775,0.4259857,82534.0,82533.0,0.08590838]
[1743952255981,0.4259857,82534.0,82533.0,0.00106168]
[1743952256183,0.4259857,82534.0,82533.0,0.00026168]
[1743952256381,0.4259857,82534.0,82533.0,0.00106168]
[1743952256582,0.4259857,82534.0,82533.0,0.00098168]
[1743952256778,0.4259857,82534.0,82533.0,0.00018168]
[1743952258479,0.4259857,82534.0,82533.0,0.08502838]
[1743952258785,0.4259857,82534.0,82533.0,0.00018168]
[1743952263383,0.4259857,82534.0,82533.0,0.08502838]
[1743952263578,0.4259857,82534.0,82533.0,0.03378168]
[1743952263890,0.57099356,82534.0,82533.0,0.11862838]
[1743952264092,0.57099356,82534.0,82533.0,0.00018168]
[1743952268198,0.084855,82525.0,82524.0,8e-05]
[1743952268490,0.0848601,82520.0,82509.0,0.0352]
[1743952268709,0.9663001,82520.0,82519.0,0.21815167]
[1743952268886,0.9663001,82520.0,82519.0,0.21735167]
[1743952269392,1.0377001,82520.0,82519.0,0.21735167]
[1743952270586,0.0848611,82519.0,82518.0,8e-05]
[1743952270788,0.5955011,82519.0,82518.0,8e-05]
[1743952270986,0.0848683,82512.0,82509.0,0.0352]
[1743952271192,0.9764683,82512.0,82511.0,0.2902347]
[1743952271793,1.0470683,82512.0,82511.0,0.2902347]
[1743952272299,1.0470683,82512.0,82511.0,0.0008]
[1743952272489,1.0470683,82512.0,82509.0,0.0352]
[1743952272490,0.0848704,82510.0,82509.0,0.0352]
[1743952272689,0.3555504,82510.0,82509.0,0.0352]
[1743952273496,0.3555504,82510.0,82509.0,0.0724]
[1743952273692,0.27068,82510.0,82509.0,0.1582714]
[1743952273995,0.3355504,82510.0,82509.0,0.1582714]
[1743952274196,0.25068,82510.0,82509.0,0.1582714]
[1743952274699,0.00068,82510.0,82509.0,0.1582714]
[1743952274999,0.0848695,82511.0,82510.0,0.0848704]
[1743952275499,0.0848695,82511.0,82510.0,0.1586704]
[1743952275793,0.0848695,82511.0,82510.0,1.6586704]
[1743952276095,0.0948695,82511.0,82510.0,1.6586704]
[1743952276800,0.0948695,82511.0,82510.0,1.5738]
[1743952277296,0.0848704,82510.0,82509.0,0.001]
[1743952277490,0.9046,82510.0,82506.0,0.0378]
[1743952277691,0.0848735,82507.0,82506.0,0.0378]
[1743952277996,0.3248735,82507.0,82506.0,0.0378]
[1743952278198,0.6048735,82507.0,82506.0,0.0378]
[1743952278899,0.6048735,82507.0,82506.0,0.0388]
[1743952279102,0.6048735,82507.0,82506.0,0.0766]
[1743952280004,0.6048735,82507.0,82506.0,0.0388]
[1743952280305,0.6055135,82507.0,82506.0,0.001]
[1743952281105,0.6055135,82507.0,82506.0,0.003]
[1743952281787,0.6055135,82507.0,82506.0,0.00392]
[1743952282597,0.6055135,82507.0,82506.0,0.003]
[1743952282897,0.0848766,82504.0,82503.0,0.03508]
[1743952283203,0.3455966,82504.0,82503.0,0.035]
[1743952283403,0.3455966,82504.0,82503.0,0.03584]
[1743952284203,0.0848796,82501.0,82500.0,0.1]
[1743952284400,0.9165196,82501.0,82500.0,0.1008]
[1743952284604,0.9165196,82501.0,82500.0,0.1]
[1743952285801,0.0848838,82497.0,82496.0,8e-05]
[1743952286104,0.0848889,82492.0,82491.0,0.00060612]
[1743952286303,0.9664889,82492.0,82491.0,0.00148612]
[1743952286504,0.9664889,82492.0,82491.0,0.00144612]
[1743952287008,1.0395889,82492.0,82491.0,0.00144612]
[1743952287200,0.084893,82488.0,82487.0,0.2894347]
[1743952287397,0.375573,82488.0,82487.0,0.2894347]
[1743952287596,0.375573,82488.0,82487.0,0.2901147]
[1743952287909,0.375573,82488.0,82487.0,0.3750088]
[1743952288100,0.375573,82488.0,82487.0,0.0855741]
[1743952288498,0.365573,82488.0,82487.0,0.1569741]
[1743952288806,0.365573,82488.0,82487.0,0.07208]
[1743952289009,0.365573,82488.0,82487.0,0.1569741]
[1743952290110,0.365573,82488.0,82487.0,0.03718]
[1743952290410,0.375573,82488.0,82487.0,0.03718]
[1743952290807,0.412873,82488.0,82487.0,0.03718]
[1743952291004,0.412873,82488.0,82487.0,0.0365]
[1743952291194,0.412873,82488.0,82487.0,0.03714]
[1743952292511,0.412873,82488.0,82487.0,0.1220341]
[1743952293403,0.412873,82488.0,82487.0,0.1575341]
[1743952294012,0.412873,82488.0,82487.0,0.07264]
[1743952294608,0.412873,82488.0,82487.0,0.03714]
[1743952295510,0.0849013,82480.0,82479.0,0.1629491]
[1743952295706,0.1049013,82480.0,82479.0,0.2061188]
[1743952296018,0.1055813,82480.0,82479.0,0.2061188]
[1743952296809,0.1055813,82480.0,82479.0,0.2071188]
[1743952297312,0.1055813,82480.0,82479.0,0.1222201]
[1743952298321,0.1412813,82480.0,82479.0,0.0797697]
[1743952298814,0.1412813,82480.0,82479.0,0.0441697]
[1743952299312,0.1412813,82480.0,82479.0,0.00172]
[1743952299507,0.1412813,82480.0,82479.0,0.1224223]
[1743952299708,0.1412813,82480.0,82479.0,0.03752]
[1743952300008,0.1412813,82480.0,82479.0,0.1224223]
[1743952300814,0.1412813,82480.0,82479.0,0.00172]
[1743952301113,0.3512813,82480.0,82479.0,0.00172]
[1743952303010,0.3512813,82480.0,82479.0,0.001]
[1743952303413,0.3876813,82480.0,82479.0,0.001]
[1743952304516,0.3452311,82480.0,82465.0,0.4881731]
[1743952304815,0.1273714,82469.0,82468.0,0.0849133]
[1743952305015,0.3580514,82469.0,82468.0,0.0855533]
[1743952305214,0.3821368,82469.0,82468.0,0.0855533]
[1743952306210,0.3821368,82469.0,82468.0,0.00064]
[1743952306619,0.3821368,82469.0,82468.0,0.0855536]
[1743952306814,0.3821368,82469.0,82468.0,0.00064]
[1743952311123,0.3921368,82469.0,82468.0,0.00064]
[1743952311430,0.3821368,82469.0,82468.0,0.00064]
[1743952312622,0.3821368,82469.0,82468.0,0.03684]
[1743952313325,0.3921368,82469.0,82468.0,0.03684]
[1743952314227,0.3921368,82469.0,82468.0,0.00064]
[1743952314616,0.0849146,82467.0,82466.0,8e-05]
[1743952314817,0.5455946,82467.0,82466.0,0.00072]
[1743952315017,0.0849219,82460.0,82459.0,0.0362]
[1743952315317,0.3456419,82460.0,82459.0,0.03684]
[1743952315519,0.3556019,82460.0,82459.0,0.03684]
[1743952316323,0.4264019,82460.0,82459.0,0.03684]
[1743952316625,0.4264019,82460.0,82459.0,0.1557629]
[1743952317731,0.4264019,82460.0,82459.0,0.1567629]
[1743952318133,0.4264019,82460.0,82459.0,0.1577629]
[1743952318324,0.3919019,82460.0,82459.0,0.1577629]
[1743952318525,0.3819019,82460.0,82459.0,0.1577629]
[1743952323346,0.3819019,82460.0,82459.0,0.07284]
[1743952323744,0.4171019,82460.0,82459.0,0.07284]
[1743952324744,0.4171019,82460.0,82459.0,0.1577629]
[1743952324947,0.3819019,82460.0,82459.0,0.07284]
[1743952325438,0.4165019,82460.0,82459.0,0.07284]
[1743952326039,0.4165019,82460.0,82459.0,0.03884]
[1743952326541,0.4165019,82460.0,82459.0,0.00264]
[1743952326746,0.0849229,82459.0,82455.0,0.00060639]
[1743952327049,0.084926,82456.0,82455.0,0.00132639]
[1743952327246,0.53580601,82456.0,82455.0,0.00060639]
[1743952327747,0.53580601,82456.0,82455.0,0.00201465]
[1743952328043,0.53580601,82456.0,82455.0,0.00301465]
[1743952328238,0.53580601,82456.0,82455.0,0.00160639]
[1743952328434,0.53580601,82456.0,82455.0,0.00382554]
[1743952329032,0.53580601,82456.0,82455.0,0.08875254]
[1743952329241,0.32580601,82456.0,82455.0,0.09139254]
[1743952329442,0.32580601,82456.0,82455.0,0.12709254]
[1743952329946,0.32580601,82456.0,82455.0,0.12809254]
[1743952330646,0.36120601,82456.0,82455.0,0.12809254]
[1743952331437,0.32580601,82456.0,82455.0,0.12809254]
[1743952331833,0.24088001,82456.0,82455.0,0.12809254]
[1743952332051,0.00088001,82456.0,82455.0,0.12809254]
[1743952332547,0.00018191,82468.0,82456.0,0.0424625]
[1743952332742,0.12755671,82468.0,82467.0,0.0849146]
[1743952333049,0.12843672,82468.0,82467.0,0.0849146]
[1743952333439,0.12843672,82468.0,82467.0,0.08713375]
[1743952334048,0.12843672,82468.0,82467.0,0.08793692]
[1743952334741,0.12843672,82468.0,82467.0,0.08874009]
[1743952335242,0.12943672,82468.0,82467.0,0.08942009]
[1743952336549,0.13943672,82468.0,82467.0,0.08942009]
[1743952338751,0.05451962,82468.0,82467.0,0.08942009]
[1743952340652,0.08871962,82468.0,82467.0,0.08942009]
[1743952348963,0.13117552,82468.0,82467.0,0.08942009]
[1743952350256,0.16637552,82468.0,82467.0,0.12572009]
[1743952350966,0.16637552,82468.0,82467.0,0.16302009]
[1743952352866,0.16549551,82468.0,82467.0,0.16302009]
[1743952354958,0.16637552,82468.0,82467.0,0.16302009]
[1743952356665,0.37637552,82468.0,82467.0,0.00450549]
[1743952356863,0.0849219,82460.0,82459.0,0.2894347]
[1743952357062,0.0849219,82460.0,82459.0,0.2900747]
[1743952357063,0.9268819,82460.0,82459.0,0.2900747]
[1743952357661,0.9991819,82460.0,82459.0,0.2900747]
[1743952358067,0.9991819,82460.0,82459.0,0.2335747]
[1743952358373,0.9991819,82460.0,82459.0,0.2329347]
[1743952358674,0.9991819,82460.0,82459.0,0.2339347]
[1743952359058,0.9991819,82460.0,82459.0,0.2329347]
[1743952359973,1.1501819,82460.0,82459.0,0.2329347]
[1743952360269,0.0849311,82451.0,82450.0,0.31034772]
[1743952360571,1.0222911,82451.0,82450.0,0.31034772]
[1743952360772,0.0849466,82436.0,82435.0,0.3608]
[1743952361072,0.3249466,82436.0,82435.0,0.3608]
[1743952361571,0.3261066,82436.0,82435.0,0.3608]
[1743952361764,0.3971066,82436.0,82435.0,0.3608]
[1743952362269,0.3971066,82436.0,82435.0,0.3628]
[1743952362877,0.6071066,82436.0,82435.0,0.3628]
[1743952363066,0.8136666,82436.0,82435.0,0.3628]
[1743952363261,0.8136666,82436.0,82435.0,0.002]
[1743952363467,0.8136666,82436.0,82435.0,0.004]
[1743952363774,0.6636666,82436.0,82435.0,0.004]
[1743952364263,0.6636666,82436.0,82435.0,0.002]
[1743952365172,0.0849517,82431.0,82430.0,8e-05]
[1743952365374,0.3549517,82431.0,82430.0,8e-05]
[1743952365566,0.3561117,82431.0,82430.0,8e-05]
[1743952365965,0.4300117,82431.0,82430.0,8e-05]
[1743952368966,0.4300117,82431.0,82430.0,0.00170044]
[1743952372678,0.3727117,82431.0,82430.0,0.00170044]
[1743952374282,0.3361117,82431.0,82430.0,0.08665324]
[1743952374672,0.0861117,82431.0,82430.0,0.15535324]
[1743952374878,0.0849517,82431.0,82430.0,0.15535324]
[1743952375070,0.0849517,82431.0,82430.0,0.1537328]
[1743952375269,0.0849517,82431.0,82430.0,0.30616306]
[1743952375671,0.0849517,82431.0,82430.0,0.15697288]
[1743952376179,0.0849451,82439.0,82438.0,0.0424712]
[1743952376480,0.0949451,82439.0,82438.0,0.4032712]
[1743952376679,0.0949451,82439.0,82438.0,0.40651128]
[1743952376878,0.0949451,82439.0,82438.0,0.47611128]
[1743952379079,0.09606511,82439.0,82438.0,0.47611128]
[1743952381969,0.00112001,82439.0,82438.0,0.47691086]
[1743952382174,0.12759281,82444.0,82443.0,0.0849394]
[1743952382381,0.13759281,82444.0,82443.0,0.0849394]
[1743952382874,0.13759281,82444.0,82443.0,0.1594394]
[1743952383185,0.13759281,82444.0,82443.0,0.16427864]
[1743952383385,0.13759281,82444.0,82443.0,0.07933924]
[1743952383676,0.13759281,82444.0,82443.0,0.04223924]
[1743952383982,0.17479281,82444.0,82443.0,0.04223924]
[1743952384976,0.17587281,82444.0,82443.0,0.04223924]
[1743952385170,0.17587281,82444.0,82443.0,0.04287924]
[1743952388784,0.17587281,82444.0,82443.0,0.04223924]
[1743952388985,0.17587281,82444.0,82443.0,0.04295924]
[1743952389182,0.17587281,82444.0,82443.0,0.04373939]
[1743952390286,0.17587281,82444.0,82443.0,0.04451954]
[1743952391088,0.17587281,82444.0,82443.0,0.12945894]
[1743952391279,0.17587281,82444.0,82443.0,0.16665894]
[1743952393892,0.17587281,82444.0,82443.0,0.20175894]
[1743952395188,0.13759281,82444.0,82443.0,0.20175894]
[1743952395389,0.13867281,82444.0,82443.0,0.20175894]
[1743952395989,0.13759281,82444.0,82443.0,0.20175894]
[1743952396881,0.13759281,82444.0,82443.0,0.00711954]
[1743952397088,0.13871282,82444.0,82443.0,0.00711954]
[1743952398091,0.14871282,82444.0,82443.0,0.00711954]
[1743952400589,0.13871282,82444.0,82443.0,0.00711954]
[1743952400988,0.13871282,82444.0,82443.0,0.09205894]
[1743952403188,0.13871282,82444.0,82443.0,0.00711954]
[1743952403492,0.14871282,82444.0,82443.0,0.00711954]
[1743952405783,0.14871282,82444.0,82443.0,0.12635894]
[1743952406096,0.04377152,82444.0,82443.0,0.16135894]
[1743952406695,0.04377152,82444.0,82443.0,1.66135894]
[1743952406899,0.04265151,82444.0,82443.0,0.16135894]
[1743952407086,0.04377152,82444.0,82443.0,0.16135894]
[1743952408396,0.07995151,82444.0,82443.0,0.16135894]
[1743952411095,0.08103151,82444.0,82443.0,0.16135894]
[1743952414307,0.04373151,82444.0,82443.0,0.16135894]
[1743952415005,0.0424625,82457.0,82452.0,0.0424647]
[1743952415204,0.084927,82455.0,82454.0,0.084927]
[1743952415408,0.134927,82455.0,82454.0,0.52122654]
[1743952415606,0.172027,82455.0,82454.0,0.52122654]
[1743952415910,0.122027,82455.0,82454.0,0.52122654]
[1743952418111,0.122027,82455.0,82454.0,0.53796639]
[1743952418311,0.122027,82455.0,82454.0,0.54688532]
[1743952419015,0.122027,82455.0,82454.0,0.53014547]
[1743952419617,0.084927,82455.0,82454.0,0.53014547]
[1743952419910,0.0359,82461.0,82457.0,0.0424623]
[1743952420215,0.0359,82466.0,82462.0,0.0849198]
[1743952420518,0.21660447,82467.0,82466.0,0.0849157]
[1743952420717,0.21732447,82467.0,82466.0,0.0856757]
[1743952421012,0.00072,82467.0,82466.0,0.0856757]
[1743952421218,0.0328,82469.0,82468.0,0.0849136]
[1743952421611,0.03352,82469.0,82468.0,0.09203314]
[1743952422616,0.0328,82469.0,82468.0,0.09203314]
[1743952422821,0.1617622,82474.0,82473.0,0.0849085]
[1743952423007,0.06072,82474.0,82473.0,0.4464285]
[1743952423410,0.0424453,82491.0,82474.0,0.0424532]
[1743952423611,0.00104001,82480.0,82479.0,0.0849023]
[1743952423812,0.00104001,82480.0,82479.0,0.0859023]
[1743952424108,0.00104001,82480.0,82479.0,1.5859023]
[1743952424318,0.0848943,82487.0,82483.0,0.0848982]
[1743952424512,0.0339,82488.0,82484.0,0.5466971]
[1743952424818,0.29514651,82499.0,82484.0,0.5466971]
[1743952424819,0.00018191,82492.0,82491.0,0.0848899]
[1743952425011,0.12018191,82492.0,82491.0,0.0858499]
[1743952425205,0.12018191,82492.0,82491.0,0.4466499]
[1743952425416,0.0424393,82502.0,82499.0,0.0848817]
[1743952425725,0.0848796,82501.0,82500.0,0.36719954]
[1743952426026,0.3448796,82501.0,82500.0,0.36815954]
[1743952426212,0.3808796,82501.0,82500.0,0.36815954]
[1743952428015,0.4501796,82501.0,82500.0,0.36815954]
[1743952428608,0.7101796,82501.0,82500.0,0.00735954]
[1743952428814,0.7101796,82501.0,82500.0,0.00639954]
[1743952430314,0.7108196,82501.0,82500.0,0.00639954]
[1743952433123,0.6757196,82501.0,82500.0,0.00639954]
[1743952433319,0.4157196,82501.0,82500.0,0.00735954]
[1743952433823,0.4157196,82501.0,82500.0,0.04225954]
[1743952434328,0.4157196,82501.0,82500.0,0.12714024]
[1743952438315,0.33084,82501.0,82500.0,0.12714024]
[1743952438521,0.1273188,82506.0,82505.0,0.1273108]
[1743952438820,0.1186738,82507.0,82506.0,0.0848745]
[1743952439123,0.1286738,82507.0,82506.0,0.1910945]
[1743952439825,0.1286738,82507.0,82506.0,0.19749404]
[1743952440133,0.1286738,82507.0,82506.0,0.00751954]
[1743952440532,0.1386738,82507.0,82506.0,0.00751954]
[1743952441231,0.4994738,82507.0,82506.0,4e-08]
[1743952441428,0.0848796,82501.0,82500.0,8e-05]
[1743952441629,0.0848879,82493.0,82487.0,0.33737427]
[1743952441821,0.3648879,82493.0,82491.0,8e-05]
[1743952442134,0.3848879,82493.0,82491.0,8e-05]
[1743952442330,0.3848879,82493.0,82491.0,0.36088]
[1743952444926,0.3848879,82493.0,82492.0,0.12027081]
[1743952445127,0.3857679,82493.0,82492.0,0.12115081]
[1743952445827,0.3657679,82493.0,82492.0,0.15395081]
[1743952447230,0.00088,82493.0,82492.0,0.15395081]
[1743952447434,0.0424414,82498.0,82494.0,0.0424432]
[1743952447624,0.1373272,82498.0,82497.0,0.0848838]
[1743952447825,0.1373272,82498.0,82497.0,0.0860438]
[1743952448334,0.01,82498.0,82497.0,0.0860438]
[1743952449133,0.0424379,82505.0,82504.0,0.1273123]
[1743952449340,0.0524379,82505.0,82504.0,0.5904923]
[1743952450336,0.1373134,82505.0,82504.0,0.5904923]
[1743952451234,0.0524379,82505.0,82504.0,0.5904923]
[1743952451433,0.0339,82511.0,82508.0,0.0848724]
[1743952451636,0.1621022,82514.0,82511.0,0.0424342]
[1743952451841,0.2521022,82514.0,82513.0,0.4456673]
[1743952452142,0.2521022,82514.0,82513.0,0.4467473]
[1743952452326,0.2521022,82514.0,82513.0,0.5127473]
[1743952454135,0.09,82514.0,82513.0,0.5127473]
[1743952454433,0.0004,82516.0,82515.0,0.0848652]
[1743952454733,0.0004,82516.0,82515.0,0.0859852]
[1743952455226,0.0004,82516.0,82515.0,0.1542852]
[1743952455428,0.0004,82516.0,82515.0,0.2106452]
[1743952455625,0.10887374,82519.0,82518.0,0.0848622]
[1743952455829,0.10887374,82519.0,82518.0,0.0859822]
[1743952456234,0.1272759,82532.0,82525.0,0.0424274]
[1743952456431,0.2872759,82532.0,82531.0,0.4456467]
[1743952456632,0.2872759,82532.0,82531.0,0.4468067]
[1743952456833,0.3215759,82532.0,82531.0,0.4468067]
[1743952457041,0.2367239,82532.0,82531.0,0.4468067]
[1743952457248,0.2367239,82532.0,82531.0,0.5175067]
[1743952457626,0.2699239,82532.0,82531.0,0.5175067]
[1743952458945,0.2791478,82532.0,82531.0,0.5175067]